bitfinex/quotes_ETHUSD_20240621
["timestamp","ask_amount","ask_price","bid_price","bid_amount"]
[1718960289097,3.29777968,3461.6,3458.6,9.31576]
[1718960289098,1.158625,3461.1,3458.6,9.31576]
[1718960289300,1.158625,3461.1,3458.8,7.0027]
[1718960289559,1.42693293,3462.2,3458.9,7.0605035]
[1718960289861,3.0,3462.3,3458.9,7.0027]
[1718960289862,1.158461,3461.7,3458.9,7.0027]
[1718960290132,1.158461,3461.7,3459.1,7.0027]
[1718960290330,1.158461,3461.7,3459.3,7.0027]
[1718960290811,1.49277633,3462.5,3459.3,7.4243]
[1718960291134,2.94554005,3462.4,3459.6,7.4243]
[1718960291370,0.74999999,3463.4,3459.4,0.55]
[1718960291371,0.05000912,3462.9,3460.9,3.45]
[1718960291520,0.05000912,3462.9,3461.1,7.4243]
[1718960291838,3.0,3464.1,3461.3,7.4243]
[1718960291994,0.04999772,3464.2,3461.3,7.4243]
[1718960292203,3.0,3464.5,3461.3,7.4243]
[1718960293241,3.0,3464.5,3461.3,9.1984]
[1718960293476,3.0,3464.1,3461.3,9.1984]
[1718960293670,3.0,3464.1,3461.3,7.4243]
[1718960294050,3.0,3463.7,3461.3,7.4243]
[1718960294680,1.157876,3464.1,3461.3,8.16673]
[1718960294852,3.05000143,3464.8,3461.3,8.16673]
[1718960295052,0.75,3465.2,3461.5,6.8836]
[1718960295364,0.75,3465.2,3461.9,6.8836]
[1718960295365,3.0,3465.2,3461.9,6.8836]
[1718960295564,3.0,3465.3,3462.1,6.8836]
[1718960295895,3.0,3464.9,3462.1,6.8836]
[1718960296041,3.0,3464.9,3462.1,7.7059053]
[1718960296374,0.75,3464.7,3462.1,7.7059053]
[1718960296696,3.75,3464.5,3462.1,6.8836]
[1718960297053,3.0,3464.1,3462.1,6.8836]
[1718960297243,0.55,3464.0,3462.1,6.8836]
[1718960297557,3.0,3463.7,3462.1,6.8836]
[1718960298082,3.55,3463.6,3462.1,6.8836]
[1718960299236,3.0,3463.6,3462.1,7.49424178]
[1718960299440,3.0,3464.0,3462.1,7.49424178]
[1718960299741,3.0,3464.7,3462.1,7.49424178]
[1718960299975,3.0,3464.7,3462.3,7.1532]
[1718960300544,1.157374,3465.2,3462.3,7.1532]
[1718960300746,3.0,3465.0,3462.3,7.1532]
[1718960300941,1.157374,3465.2,3462.3,7.1532]
[1718960300942,3.0,3464.6,3462.3,7.1532]
[1718960301146,3.0,3465.0,3462.3,7.1532]
[1718960301451,0.2885,3464.9,3462.5,7.1532]
[1718960301779,0.2885,3464.9,3462.7,7.2389]
[1718960302495,0.2885,3464.9,3462.8,0.04352149]
[1718960302646,0.2885,3464.9,3462.9,7.2389]
[1718960302846,3.0,3465.0,3462.9,7.2389]
[1718960303447,3.0,3464.9,3462.9,7.2389]
[1718960303788,0.2885,3465.4,3463.0,0.0318589]
[1718960304098,0.2885,3465.7,3463.0,7.4419589]
[1718960304307,3.2885,3465.7,3463.1,8.15429589]
[1718960304598,1.445702,3465.7,3463.3,7.4101]
[1718960304781,0.2885,3465.7,3463.3,7.4101]
[1718960304992,3.0,3465.8,3463.3,7.4101]
[1718960304993,0.2885,3465.8,3463.3,7.4101]
[1718960305179,0.2885,3465.6,3463.5,7.3101]
[1718960305781,1.157052,3466.1,3463.5,7.3101]
[1718960305782,0.2885,3465.4,3463.5,7.3101]
[1718960306002,1.157052,3466.1,3463.5,7.3101]
[1718960306141,0.1179728,3466.2,3463.7,7.0495]
[1718960306786,0.1179728,3466.2,3463.7,10.0875]
[1718960306994,0.1179728,3466.2,3463.8,7.0495]
[1718960307768,0.1179728,3466.2,3463.8,10.0875]
[1718960307971,0.1179728,3466.2,3464.1,6.7929]
[1718960308197,0.1179728,3466.2,3464.0,3.45]
[1718960308198,0.1179728,3466.2,3464.3,6.7929]
[1718960308969,0.2885,3466.1,3464.3,6.7929]
[1718960309506,1.2749648,3466.2,3464.3,6.7929]
[1718960309877,0.55,3466.1,3464.3,6.7929]
[1718960310078,0.1179728,3466.2,3464.3,6.7929]
[1718960310304,0.1179728,3466.2,3464.4,0.67929]
[1718960311322,0.1179728,3466.2,3464.5,7.4164]
[1718960312665,1.44505,3467.6,3464.6,5.34706]
[1718960312872,0.2885,3467.6,3464.9,7.4164]
[1718960313298,0.49970003,3468.2,3465.0,10.4544]
[1718960313501,0.2885,3468.1,3465.1,8.46184]
[1718960313815,0.2885,3468.1,3465.1,7.4164]
[1718960313816,1.44487,3468.1,3465.1,7.4164]
[1718960315380,0.2885,3467.7,3465.1,7.4164]
[1718960315692,0.2885,3467.7,3465.3,7.2184]
[1718960316073,0.8385,3467.6,3465.3,7.2184]
[1718960316275,3.0,3467.7,3465.3,7.2184]
[1718960316505,1.15637,3468.1,3465.3,7.2184]
[1718960316978,3.0,3468.2,3465.5,7.3427]
[1718960317324,3.0,3468.2,3465.4,2.3085]
[1718960317325,4.156316,3468.2,3465.7,7.3427]
[1718960317471,3.0,3467.8,3465.7,7.3427]
[1718960318195,0.49972814,3467.7,3465.7,7.3427]
[1718960318744,0.2885,3467.2,3465.7,7.3427]
[1718960318948,3.78822814,3467.2,3465.7,7.3427]
[1718960319154,0.2885,3467.0,3465.7,7.3427]
[1718960319367,0.8385,3466.9,3465.7,7.3427]
[1718960319671,0.2885,3466.7,3465.7,7.3427]
[1718960319814,0.2885,3466.5,3465.7,7.3427]
[1718960320216,0.2885,3466.5,3465.0,7.3427]
[1718960320217,0.8385,3466.4,3465.0,7.3427]
[1718960320417,0.78835082,3466.3,3465.0,7.3427]
[1718960320719,3.55,3466.4,3465.0,7.3427]
[1718960320720,0.2885,3466.1,3465.0,7.3427]
[1718960321058,0.2885,3465.9,3465.0,7.3427]
[1718960321253,0.78844742,3465.9,3465.0,7.3427]
[1718960321463,0.55,3465.8,3465.0,7.3427]
[1718960321743,0.55,3465.8,3463.3,7.3427]
[1718960321950,0.55,3465.8,3463.4,8.98931]
[1718960322256,3.2885,3465.6,3463.4,8.98931]
[1718960322483,3.55,3465.5,3463.4,8.98931]
[1718960322757,0.78844742,3465.4,3463.4,8.98931]
[1718960322919,0.55,3465.3,3463.4,8.98931]
[1718960323120,0.55,3465.3,3463.6,6.9019]
[1718960323320,0.49994742,3465.3,3463.6,6.9019]
[1718960323542,7.6133,3466.4,3463.6,6.9019]
[1718960323543,0.2885,3465.8,3463.6,6.9019]
[1718960323740,3.0,3466.3,3463.6,6.9019]
[1718960323741,0.49993014,3466.2,3463.6,6.9019]
[1718960323958,3.75,3466.8,3463.8,6.9019]
[1718960324134,3.0,3466.3,3463.8,6.9019]
[1718960324333,0.49990247,3466.2,3463.8,6.9019]
[1718960324541,0.49990247,3466.2,3463.2,1.7534]
[1718960324542,3.49990247,3466.6,3464.0,6.9019]
[1718960324758,0.4998569,3466.5,3464.2,6.9019]
[1718960325034,0.4998569,3466.7,3464.2,6.9019]
[1718960325230,0.4998569,3466.8,3464.4,6.9019]
[1718960325434,0.4998569,3467.0,3464.4,9.9399]
[1718960325709,0.4998569,3467.0,3464.8,3.038]
[1718960325976,3.0,3467.9,3465.2,3.038]
[1718960326153,0.49967119,3467.8,3465.3,6.9019]
[1718960326329,3.45,3468.6,3465.4,7.89589]
[1718960326530,0.2885,3467.7,3465.4,7.89589]
[1718960326766,0.78816276,3467.7,3465.4,7.89589]
[1718960326949,0.49966276,3467.6,3465.4,7.89589]
[1718960327175,0.49966276,3468.1,3465.4,7.89589]
[1718960327366,3.0,3467.8,3465.5,7.691489]
[1718960327665,0.2885,3467.6,3465.5,7.691489]
[1718960328025,0.8385,3467.5,3465.5,7.691489]
[1718960328299,0.49966276,3467.4,3465.5,7.691489]
[1718960328634,0.2885,3468.0,3465.5,7.691489]
[1718960328952,0.2885,3467.6,3465.5,6.9019]
[1718960329270,0.49966276,3467.6,3465.5,6.9019]
[1718960329431,0.49969848,3467.6,3465.5,6.9019]
[1718960329626,0.49969848,3467.9,3465.7,7.1006]
[1718960330461,0.8000338,3468.8,3465.7,7.1006]
[1718960330462,4.65597348,3468.4,3465.7,7.1006]
[1718960330637,0.2885,3468.2,3465.7,7.1006]
[1718960330842,0.78819848,3468.2,3465.8,8.11506]
[1718960331368,0.49969848,3468.1,3465.8,8.11506]
[1718960331563,0.78819848,3468.3,3465.8,8.11506]
[1718960331732,0.78819848,3468.3,3466.0,7.296]
[1718960331935,0.49969848,3468.2,3466.2,3.044]
[1718960332231,3.1179728,3469.7,3466.4,6.8777]
[1718960332232,4.156092,3469.3,3466.4,6.8777]
[1718960332478,3.0,3468.9,3466.6,6.8777]
[1718960332668,0.49947591,3469.2,3466.6,6.8777]
[1718960332669,1.65548991,3469.2,3466.6,6.8777]
[1718960332985,1.65548991,3469.2,3466.6,8.5343]
[1718960332986,0.2885,3469.0,3466.6,8.5343]
[1718960333188,0.2885,3469.0,3466.7,8.298247]
[1718960333335,0.2885,3469.0,3466.8,7.40327878]
[1718960333558,0.49949423,3469.1,3466.8,7.40327878]
[1718960333559,0.2885,3469.1,3466.8,7.40327878]
[1718960333999,0.49949423,3469.2,3466.8,7.40327878]
[1718960334000,0.49949423,3469.2,3466.8,10.44727878]
[1718960334185,3.78799423,3469.2,3466.9,7.3456]
[1718960334493,3.78799423,3469.2,3467.1,7.3456]
[1718960334494,0.49949423,3469.1,3467.1,7.3456]
[1718960334721,0.49949423,3469.1,3467.2,7.4093]
[1718960335189,0.49940872,3469.1,3467.2,7.4093]
[1718960336091,0.49940872,3469.6,3467.2,7.4093]
[1718960336290,0.49940872,3469.6,3467.3,6.9774]
[1718960336491,2.09742197,3469.5,3467.4,0.69774]
[1718960336805,0.49940872,3469.4,3467.4,0.69774]
[1718960337089,2.09742197,3469.3,3467.4,0.69774]
[1718960337304,0.2885,3469.1,3467.4,0.69774]
[1718960337596,0.55,3469.0,3467.4,0.69774]
[1718960337779,1.04940872,3469.1,3467.5,0.767514]
[1718960337980,2.09770983,3469.0,3467.5,0.767514]
[1718960338203,0.49944984,3468.9,3467.5,0.767514]
[1718960338823,0.49944984,3469.0,3467.5,0.767514]
[1718960339023,2.64781066,3468.9,3467.3,6.9774]
[1718960339227,0.2885,3468.3,3467.3,6.9774]
[1718960339532,0.2885,3468.1,3467.3,6.9774]
[1718960339700,0.2885,3467.9,3467.3,6.9774]
[1718960339902,0.55,3467.8,3467.3,6.9774]
[1718960340298,1.04944984,3467.8,3467.3,6.9774]
[1718960340799,0.49962546,3467.7,3467.3,6.9774]
[1718960341004,0.8385,3467.8,3467.3,6.9774]
[1718960341233,0.2885,3467.7,3466.7,7.206]
[1718960341535,0.55,3467.6,3466.7,7.206]
[1718960341694,2.09845854,3467.5,3466.0,7.206]
[1718960342052,1.04962347,3467.4,3466.0,7.206]
[1718960342201,3.0,3467.5,3466.0,7.206]
[1718960342393,3.0,3468.4,3466.0,7.206]
[1718960342720,2.5980597,3468.3,3466.0,7.206]
[1718960342914,5.5980597,3468.2,3466.1,0.7206]
[1718960343120,2.09843036,3468.1,3466.1,0.7206]
[1718960343293,2.09843036,3468.1,3466.2,7.0903]
[1718960343294,0.49961998,3468.0,3466.2,7.0903]
[1718960343744,0.2885,3468.4,3466.2,7.0903]
[1718960344045,0.49961998,3468.4,3466.5,7.0903]
[1718960344214,3.0,3469.0,3466.5,7.0903]
[1718960344215,0.49961998,3468.9,3466.5,7.0903]
[1718960344408,2.09781048,3468.8,3466.5,7.0903]
[1718960344613,0.49961998,3468.7,3466.5,7.0903]
[1718960344933,0.49961998,3468.7,3466.1,0.7206]
[1718960344934,2.09781048,3468.6,3466.7,6.8094]
[1718960345433,2.0976658,3468.5,3466.7,6.8094]
[1718960345591,7.4,3469.2,3466.7,6.8094]
[1718960345592,7.4,3469.2,3466.8,7.3006]
[1718960345927,2.59704075,3469.1,3466.8,7.3006]
[1718960346135,2.09760723,3469.0,3467.0,7.061]
[1718960346335,0.49942868,3469.0,3467.0,7.061]
[1718960346535,2.09760723,3468.9,3467.0,7.061]
[1718960346737,0.49942868,3468.8,3467.0,7.061]
[1718960346913,2.09787488,3468.7,3467.0,7.061]
[1718960347103,2.09787488,3468.7,3467.2,7.4434]
[1718960347310,5.09787488,3468.7,3467.2,7.4434]
[1718960347502,3.0,3468.7,3467.2,7.4434]
[1718960347703,3.0,3469.1,3467.2,7.4434]
[1718960347955,2.59697211,3469.0,3467.2,7.4434]
[1718960348157,0.1,3468.3,3467.2,8.18774]
[1718960352974,0.1,3468.3,3467.2,7.4434]
[1718960354422,2.09789109,3468.2,3467.2,7.4434]
[1718960354628,0.49948173,3468.1,3467.2,7.4434]
[1718960355025,0.1,3468.3,3467.2,7.4434]
[1718960355639,2.09777413,3468.2,3467.2,7.4434]
[1718960355978,0.49948173,3468.1,3467.2,7.4434]
[1718960356269,0.49948173,3468.1,3466.2,7.368]
[1718960356270,3.0,3467.7,3466.2,7.368]
[1718960356450,2.88575586,3467.6,3466.2,7.368]
[1718960356625,0.2885,3467.4,3466.2,7.368]
[1718960356831,2.38627413,3467.3,3466.2,7.368]
[1718960357187,3.14725586,3467.2,3466.2,7.368]
[1718960357393,3.14725586,3467.2,3464.2,7.4775]
[1718960357394,0.2885,3467.0,3464.2,7.4775]
[1718960357593,5.64777413,3466.9,3464.4,7.4775]
[1718960357762,2.59759546,3466.8,3464.4,7.4775]
[1718960357964,3.0,3466.4,3464.4,7.4775]
[1718960358285,2.59769748,3466.3,3464.4,7.4775]
[1718960358497,0.2885,3465.8,3464.4,7.4775]
[1718960358707,2.64777413,3465.7,3464.4,7.4775]
[1718960358854,2.59777345,3465.6,3464.4,7.4775]
[1718960359189,6.14777345,3465.5,3463.7,6.8171]
[1718960359360,0.2885,3465.3,3463.7,6.8171]
[1718960359549,2.64777413,3465.2,3463.7,6.8171]
[1718960359753,2.59777345,3465.1,3463.7,7.49881]
[1718960359958,5.59777345,3465.0,3463.7,7.49881]
[1718960360185,0.49999932,3464.9,3463.7,7.49881]
[1718960360407,0.49996791,3465.5,3463.8,0.749881]
[1718960360566,2.09987803,3465.4,3463.7,6.8171]
[1718960360749,1.04997621,3465.3,3463.7,6.8171]
[1718960361128,2.09987803,3465.2,3463.7,6.8171]
[1718960361314,1.04997621,3465.1,3463.7,6.8171]
[1718960361454,2.09987803,3465.0,3463.7,6.8171]
[1718960361655,1.04997621,3464.9,3463.7,6.8171]
[1718960361856,2.09987803,3464.8,3463.7,6.8171]
[1718960362101,1.04997621,3464.7,3463.7,6.8171]
[1718960362253,2.09987803,3464.6,3463.7,6.8171]
[1718960362608,5.09987803,3464.6,3463.7,6.8171]
[1718960362803,3.0,3464.6,3463.7,6.8171]
[1718960363097,0.55,3464.7,3463.7,6.8171]
[1718960363408,1.05009098,3464.9,3463.7,6.8171]
[1718960363568,2.10029458,3464.8,3463.7,6.8171]
[1718960363764,0.55,3464.7,3463.7,6.8171]
[1718960363970,3.0,3464.7,3463.7,6.8171]
[1718960364399,3.0,3465.6,3463.7,6.8171]
[1718960364555,2.09987308,3465.5,3463.7,6.8171]
[1718960364758,3.0,3465.8,3463.7,6.8171]
[1718960365064,7.4,3466.5,3462.6,3.45]
[1718960365065,3.0,3466.2,3463.8,0.68171]
[1718960365371,10.4,3466.5,3463.8,0.68171]
[1718960365372,2.09953785,3466.1,3463.9,6.9098]
[1718960365556,3.0,3466.4,3463.3,3.044]
[1718960365557,0.2895,3466.3,3464.1,6.9458]
[1718960365764,0.49982044,3467.0,3463.3,3.044]
[1718960365765,0.2895,3466.8,3464.3,6.9458]
[1718960365994,0.2895,3466.6,3464.6,6.9458]
[1718960366882,0.2895,3467.1,3464.7,0.0288631]
[1718960367092,0.2895,3466.9,3465.0,7.3238]
[1718960367316,0.2895,3466.9,3465.1,1.23600864]
[1718960367454,0.2895,3466.9,3465.1,1.20714]
[1718960368011,0.2895,3466.8,3465.1,1.20714]
[1718960369008,0.2895,3466.7,3465.1,1.20714]
[1718960369294,0.2895,3466.7,3465.0,7.3238]
[1718960369295,0.2895,3466.5,3465.0,7.3238]
[1718960369504,0.2895,3466.3,3463.3,3.45]
[1718960369661,0.2895,3466.3,3463.4,7.3052]
[1718960369662,5.38859879,3466.2,3463.4,7.3052]
[1718960369863,0.2895,3466.0,3463.4,10.3492]
[1718960370092,2.64909879,3465.9,3463.4,10.3492]
[1718960370262,2.59884097,3465.8,3463.5,1.03492]
[1718960370483,5.64909879,3465.7,3463.5,1.03492]
[1718960370665,3.55,3465.7,3463.5,4.07892]
[1718960371017,3.0,3465.6,3463.8,3.044]
[1718960371163,3.0,3466.1,3464.0,3.044]
[1718960371357,0.2895,3466.9,3464.2,3.044]
[1718960371565,0.2895,3466.7,3464.2,3.044]
[1718960371763,0.2895,3466.5,3464.3,0.99292]
[1718960371963,0.2895,3466.3,3464.3,0.99292]
[1718960372358,0.2895,3466.3,3464.5,3.044]
[1718960372996,0.2895,3466.7,3464.5,3.044]
[1718960373203,0.2895,3466.5,3464.6,1.141662]
[1718960373561,0.2895,3466.3,3464.6,1.141662]
[1718960373784,0.2895,3466.3,3464.7,9.8464]
[1718960373988,0.2895,3466.3,3464.9,3.044]
[1718960374172,0.4997549,3467.1,3465.2,3.044]
[1718960374403,0.7892549,3467.9,3465.4,3.044]
[1718960374699,0.7892549,3467.9,3465.6,6.8024]
[1718960374700,2.09863508,3467.8,3465.6,6.8024]
[1718960374897,0.49965784,3467.7,3465.7,0.04377579]
[1718960375099,2.09863508,3467.6,3465.7,0.04377579]
[1718960375422,0.2895,3468.2,3465.9,1.818]
[1718960375566,0.2895,3468.0,3466.0,0.043772]
[1718960375907,0.2895,3467.9,3466.0,0.043772]
[1718960376569,0.2895,3467.9,3465.9,4.862]
[1718960376570,0.2895,3467.9,3465.9,1.818]
[1718960376762,0.2895,3468.0,3466.0,0.55829953]
[1718960377099,0.1,3468.3,3466.0,0.55829953]
[1718960377261,2.09820684,3468.2,3466.1,7.2696]
[1718960377462,0.49959571,3468.1,3466.1,7.2696]
[1718960377662,0.49959571,3468.1,3466.2,0.96458995]
[1718960377663,2.09820684,3468.0,3466.2,0.96458995]
[1718960377858,0.499609,3467.9,3466.1,7.2696]
[1718960378076,2.09820684,3467.8,3466.1,7.2696]
[1718960378303,0.499609,3467.7,3466.1,7.2696]
[1718960378487,0.55,3467.6,3466.1,7.2696]
[1718960378802,3.499609,3467.7,3466.1,7.2696]
[1718960378803,3.0,3467.7,3466.1,7.2696]
[1718960379032,3.0,3468.1,3466.1,7.2696]
[1718960379033,3.0,3468.0,3466.1,7.2696]
[1718960379162,0.2895,3467.8,3466.1,7.2696]
[1718960379498,2.64842964,3467.7,3466.1,7.2696]
[1718960379704,5.59805942,3467.6,3466.1,7.2696]
[1718960379874,1.04967851,3467.5,3466.1,7.2696]
[1718960380092,6.14830606,3467.5,3466.1,7.2696]
[1718960380317,2.59830606,3467.4,3466.1,7.2696]
[1718960380518,3.0,3467.6,3466.1,7.2696]
[1718960380519,6.14834123,3467.3,3466.1,7.2696]
[1718960380737,0.49971368,3467.2,3466.1,7.2696]
[1718960380885,0.55,3467.1,3466.1,7.2696]
[1718960381601,0.49971368,3467.4,3466.1,7.2696]
[1718960381791,2.09865368,3467.3,3466.1,7.2696]
[1718960381995,0.49971368,3467.2,3466.1,7.2696]
[1718960382191,3.49971368,3467.2,3466.1,7.2696]
[1718960382411,2.59838486,3467.1,3466.1,7.2696]
[1718960382616,3.49971368,3467.0,3464.7,7.1596]
[1718960382817,0.49971368,3466.9,3464.8,3.0]
[1718960383000,0.55,3466.8,3464.8,3.0]
[1718960383206,0.55,3467.0,3464.9,1.4153]
[1718960383523,0.8395,3467.1,3464.9,1.4153]
[1718960383692,2.09872978,3467.0,3465.0,0.85749]
[1718960384020,0.55,3466.9,3465.0,0.85749]
[1718960384329,4.04974707,3466.9,3465.0,0.85749]
[1718960384479,0.49974707,3466.8,3465.0,0.85749]
[1718960384682,0.55,3466.7,3465.0,0.85749]
[1718960384909,2.09900425,3466.6,3465.0,0.85749]
[1718960385121,1.04976934,3466.5,3465.0,0.85749]
[1718960385332,2.09900425,3466.4,3464.7,7.1596]
[1718960385629,0.49976934,3466.3,3464.7,7.1596]
[1718960385793,3.49976934,3466.3,3464.7,7.1596]
[1718960385995,3.49976934,3466.2,3465.0,3.044]
[1718960386198,3.0,3466.5,3465.1,10.4387]
[1718960386499,3.0,3467.7,3465.3,7.3947]
[1718960386829,2.59825941,3467.6,3465.4,3.044]
[1718960387136,5.59825941,3467.5,3465.5,7.3947]
[1718960387286,2.59825941,3467.4,3465.5,7.3947]
[1718960387609,5.59825941,3467.3,3465.5,7.3947]
[1718960387815,2.59825941,3467.2,3465.6,0.73947]
[1718960388022,3.0,3467.7,3465.6,0.73947]
[1718960388023,5.59825941,3467.1,3465.6,0.73947]
[1718960388327,2.59837855,3467.0,3465.5,7.3947]
[1718960388624,10.54827824,3468.2,3465.5,7.3947]
[1718960388625,5.59837855,3466.9,3465.5,7.3947]
[1718960388839,7.9017,3467.3,3465.5,7.3947]
[1718960388840,2.59837855,3466.8,3465.5,7.3947]
[1718960388986,3.14837855,3466.7,3465.5,7.3947]
[1718960389321,2.59850583,3466.6,3465.5,7.3947]
[1718960389491,5.64871053,3466.5,3465.5,7.3947]
[1718960389684,0.49978779,3466.4,3465.5,7.3947]
[1718960390000,2.09912392,3466.3,3465.5,7.3947]
[1718960390200,0.49978779,3466.2,3465.5,7.3947]
[1718960390402,0.49978779,3466.2,3463.7,3.45]
[1718960390403,3.49978779,3466.2,3463.7,7.4579]
[1718960390701,7.4,3467.2,3463.8,1.48279]
[1718960390702,3.14915741,3466.1,3463.8,1.48279]
[1718960390885,5.59915741,3466.0,3463.8,1.48279]
[1718960391087,3.14915741,3465.9,3463.8,1.48279]
[1718960391328,2.59915741,3465.8,3463.8,1.48279]
[1718960391524,2.59915741,3465.8,3463.7,7.4579]
[1718960391525,6.14915741,3465.7,3463.9,0.894069]
[1718960391723,2.59915741,3465.6,3463.9,0.894069]
[1718960391942,3.49978779,3465.5,3463.9,0.894069]
[1718960392089,3.0,3465.9,3464.0,7.4205]
[1718960392284,3.0,3465.4,3464.0,7.4205]
[1718960392543,3.0,3465.7,3464.0,8.2769549]
[1718960392821,0.49986442,3465.6,3464.0,8.2769549]
[1718960393037,0.49986442,3465.6,3464.0,5.2329549]
[1718960393204,0.49986442,3466.3,3464.0,5.2329549]
[1718960393384,2.64946994,3466.2,3464.1,0.61270239]
[1718960393586,5.59933436,3466.1,3464.1,0.61270239]
[1718960393936,6.14933436,3466.0,3464.1,0.61270239]
[1718960394241,2.59933436,3465.9,3464.1,0.61270239]
[1718960394524,6.14933436,3465.8,3464.1,0.61270239]
[1718960394720,6.14933436,3465.8,3464.2,0.58456573]
[1718960394721,2.59933436,3465.7,3464.2,0.58456573]
[1718960394926,5.59933436,3465.6,3464.2,0.58456573]
[1718960395158,0.49988571,3465.5,3464.2,0.58456573]
[1718960395314,0.49988614,3465.5,3464.3,0.58175206]
[1718960395714,0.55,3465.8,3464.3,0.58175206]
[1718960395932,2.09935636,3465.7,3464.3,0.58175206]
[1718960396130,0.49988614,3465.6,3464.3,0.58175206]
[1718960396816,0.49988614,3466.6,3464.3,0.58175206]
[1718960397132,6.2895,3466.8,3464.3,0.58175206]
[1718960397133,2.64931498,3466.5,3464.3,0.58175206]
[1718960397321,5.59920112,3466.4,3464.3,0.58175206]
[1718960397525,6.14920112,3466.3,3464.3,0.58175206]
[1718960397712,2.59920112,3466.2,3464.3,0.58175206]
[1718960397913,6.14920112,3466.1,3464.3,0.58175206]
[1718960398148,2.599123,3466.0,3464.4,7.1945]
[1718960398309,5.599123,3465.9,3464.4,7.1945]
[1718960398515,3.0,3466.1,3464.4,7.1945]
[1718960398516,3.49980802,3465.8,3464.4,7.1945]
[1718960398710,0.49980802,3465.7,3464.5,1.08202521]
[1718960398935,0.49980802,3466.0,3464.5,4.12602521]
[1718960399110,10.0892,3467.4,3464.6,10.2385]
[1718960399111,0.49980802,3466.6,3464.6,10.2385]
[1718960399320,2.0989312,3466.5,3464.6,10.2385]
[1718960399636,2.59873922,3466.4,3464.7,1.13205252]
[1718960399834,2.59873922,3466.3,3464.7,1.13205252]
[1718960400039,3.0,3466.6,3464.6,7.1945]
[1718960400040,2.59873922,3466.2,3464.6,7.1945]
[1718960400238,5.59873922,3466.1,3464.6,7.1945]
[1718960400438,2.59873922,3466.0,3464.6,7.1945]
[1718960400661,5.0989312,3465.9,3464.6,7.1945]
[1718960400830,2.59881606,3465.8,3464.7,0.71945]
[1718960401153,5.0989312,3465.7,3464.6,7.1945]
[1718960401354,0.49988486,3465.8,3464.6,7.1945]
[1718960401355,2.59881236,3465.6,3464.6,7.1945]
[1718960401649,2.59881236,3465.5,3464.6,7.1945]
[1718960401851,2.59881236,3465.4,3464.7,0.71945]
[1718960402053,0.49988486,3465.8,3464.7,0.71945]
[1718960402257,2.09923019,3465.7,3464.7,0.71945]
[1718960402549,0.4998117,3465.6,3464.7,0.71945]
[1718960402765,2.09923019,3465.5,3464.7,0.71945]
[1718960402920,0.4998117,3465.4,3464.7,0.71945]
[1718960403115,2.09923019,3465.3,3464.7,0.71945]
[1718960403317,2.09923019,3465.3,3464.8,0.791395]
[1718960403520,0.49988486,3465.8,3464.8,0.791395]
[1718960403521,2.09923019,3465.5,3464.8,0.791395]
[1718960403783,2.59915824,3465.4,3464.6,7.1945]
[1718960403932,2.59915824,3465.4,3464.0,6.7917]
[1718960403933,5.0993133,3465.3,3464.0,6.7917]
[1718960404259,2.59915824,3465.2,3464.0,6.7917]
[1718960404454,5.59915824,3465.1,3464.0,6.7917]
[1718960404630,2.59915824,3465.0,3464.0,6.7917]
[1718960404830,2.85907406,3464.9,3464.0,6.7917]
[1718960405043,5.59915824,3464.8,3464.0,6.7917]
[1718960405351,2.59915824,3464.7,3463.4,7.0341]
[1718960405551,6.14915824,3464.6,3463.5,0.87902]
[1718960405886,2.59915824,3464.5,3463.5,0.87902]
[1718960406162,2.59937036,3464.4,3463.4,7.0341]
[1718960406365,3.14827824,3466.1,3463.8,2.30953]
[1718960406572,6.7988,3466.9,3463.9,6.8506]
[1718960406573,3.0,3465.6,3463.9,6.8506]
[1718960406769,0.49990695,3465.5,3463.9,6.8506]
[1718960406926,3.0,3466.2,3463.9,6.8506]
[1718960406927,0.49981781,3465.6,3463.9,6.8506]
[1718960407130,3.0,3466.2,3463.9,6.8506]
[1718960407131,0.49981781,3466.1,3463.9,6.8506]
[1718960407347,6.9831,3465.7,3463.9,6.8506]
[1718960407751,1.04981781,3465.6,3463.9,6.8506]
[1718960408023,1.04981781,3465.6,3463.3,6.8377]
[1718960408024,3.0,3465.3,3463.3,6.8377]
[1718960408282,0.49981781,3465.2,3463.3,6.8377]
[1718960408428,4.04981781,3465.2,3463.3,6.8377]
[1718960408623,4.04981781,3465.2,3463.4,0.68377]
[1718960408624,3.55,3465.2,3463.4,0.68377]
[1718960408858,3.0,3464.9,3462.4,7.1975]
[1718960409059,0.55,3464.8,3462.4,7.1975]
[1718960409336,4.05009463,3464.8,3462.4,7.1975]
[1718960409573,0.50009463,3464.7,3462.4,7.1975]
[1718960410283,0.55,3464.6,3462.5,0.71975]
[1718960410469,0.50006773,3464.7,3462.5,3.76375]
[1718960410699,0.55,3464.6,3462.5,0.71975]
[1718960410964,0.55,3464.6,3462.4,7.1975]
[1718960410965,0.16000677,3464.5,3462.6,0.791725]
[1718960411385,0.55,3464.4,3462.6,0.791725]
[1718960411547,3.0,3464.3,3462.4,7.1975]
[1718960411733,0.50014188,3464.2,3462.4,7.1975]
[1718960411935,4.05014188,3464.2,3462.4,7.1975]
[1718960412164,0.50014188,3464.1,3462.5,0.71975]
[1718960412387,3.0,3463.8,3462.4,7.1975]
[1718960412595,4.05014188,3463.7,3461.0,6.8293]
[1718960412750,0.50014188,3463.6,3461.1,3.0]
[1718960412944,0.50014188,3463.6,3461.0,6.8293]
[1718960412945,0.50014188,3463.6,3461.2,0.98293]
[1718960413175,0.55,3463.5,3461.2,0.98293]
[1718960413335,7.4201,3463.5,3461.2,0.98293]
[1718960413675,6.50014188,3463.4,3461.2,0.98293]
[1718960413917,0.50014188,3463.3,3461.2,0.98293]
[1718960414031,0.50014188,3463.3,3461.0,6.8293]